[Event "*** Titled Tuesday Blitz"]
[Site "Chess.com"]
[Date "2020.10.20"]
[Round "4"]
[White "Berant"]
[Black "WonderChampion"]
[Result "1-0"]
[WhiteElo "2377"]
[BlackElo "2046"]
[TimeControl "180+1"]
[EndTime "10:40:01 PDT"]
[Termination "Berant won by resignation"]

1. e4 {[%clk 0:02:59.4]} 1... c5 {[%clk 0:02:59.5]} 2. Nf3 {[%clk 0:02:58.5]}
2... g6 {[%clk 0:02:58.3]} 3. d4 {[%clk 0:02:57.7]} 3... cxd4 {[%clk 0:02:59.2]}
4. Qxd4 {[%clk 0:02:57.3]} 4... Nf6 {[%clk 0:02:55.4]} 5. e5 {[%clk 0:02:56.4]}
5... Nc6 {[%clk 0:02:54.8]} 6. Qa4 {[%clk 0:02:56.9]} 6... Nd5 {[%clk
0:02:53.6]} 7. c4 {[%clk 0:02:48.4]} 7... Nb6 {[%clk 0:02:51.4]} 8. Qc2 {[%clk
0:02:48]} 8... Bg7 {[%clk 0:02:50]} 9. Bf4 {[%clk 0:02:47.6]} 9... O-O {[%clk
0:02:48.8]} 10. Nc3 {[%clk 0:02:44.7]} 10... f6 {[%clk 0:02:40]} 11. c5 {[%clk
0:02:41.3]} 11... fxe5 {[%clk 0:02:27.6]} 12. Bg3 {[%clk 0:02:26]} 12... e4
{[%clk 0:02:08]} 13. Ng5 {[%clk 0:02:08]} 13... Bxc3+ {[%clk 0:01:58.6]} 14.
Qxc3 {[%clk 0:02:02.9]} 14... Nd5 {[%clk 0:01:58.2]} 15. Bc4 {[%clk 0:02:01.1]}
15... e6 {[%clk 0:01:53.9]} 16. Bxd5 {[%clk 0:01:53.2]} 16... exd5 {[%clk
0:01:54.8]} 17. Qd2 {[%clk 0:01:53.4]} 17... Rf5 {[%clk 0:01:33.3]} 18. Nh3
{[%clk 0:01:50.3]} 18... Qe7 {[%clk 0:01:25.7]} 19. Bd6 {[%clk 0:01:48.9]} 19...
Qf7 {[%clk 0:01:24.4]} 20. O-O-O {[%clk 0:01:44.6]} 20... Ne5 {[%clk 0:01:16.5]}
21. Ng5 {[%clk 0:01:30.5]} 21... Qf6 {[%clk 0:01:08.4]} 22. Qxd5+ {[%clk
0:01:29.6]} 22... Nf7 {[%clk 0:00:40]} 23. Qxf7+ {[%clk 0:01:25.9]} 23... Qxf7
{[%clk 0:00:38.5]} 24. Nxf7 {[%clk 0:01:26.3]} 24... Rxf7 {[%clk 0:00:39.4]} 25.
Rhe1 {[%clk 0:01:22.4]} 25... Rxf2 {[%clk 0:00:37.2]} 26. Rxe4 {[%clk
0:01:22.2]} 26... Kg7 {[%clk 0:00:28.9]} 27. Re7+ {[%clk 0:01:17.7]} 27... Rf7
{[%clk 0:00:27.4]} 28. Rxf7+ {[%clk 0:01:15.6]} 28... Kxf7 {[%clk 0:00:28.3]}
29. Rf1+ {[%clk 0:01:15.8]} 29... Kg7 {[%clk 0:00:28.1]} 30. Bf8+ {[%clk
0:01:12.8]} 30... Kg8 {[%clk 0:00:27.6]} 31. Bh6 {[%clk 0:01:13]} 1-0

[Event "*** Titled Tuesday Blitz"]
[Site "Chess.com"]
[Date "2020.10.20"]
[Round "4"]
[White "ajedrezhoy"]
[Black "enriquebutti"]
[Result "0-1"]
[WhiteElo "2215"]
[BlackElo "2002"]
[TimeControl "180+1"]
[EndTime "10:40:01 PDT"]
[Termination "enriquebutti won by checkmate"]

1. e4 {[%clk 0:02:59.9]} 1... c5 {[%clk 0:02:48]} 2. Nf3 {[%clk 0:02:57.8]} 2...
d6 {[%clk 0:02:45.1]} 3. c3 {[%clk 0:02:56.7]} 3... Nf6 {[%clk 0:02:44.2]} 4.
Be2 {[%clk 0:02:56.2]} 4... Bd7 {[%clk 0:02:43.4]} 5. Qc2 {[%clk 0:02:55]} 5...
Bc6 {[%clk 0:02:42.7]} 6. d3 {[%clk 0:02:54.3]} 6... e5 {[%clk 0:02:41.5]} 7.
O-O {[%clk 0:02:53.6]} 7... Nbd7 {[%clk 0:02:40.8]} 8. c4 {[%clk 0:02:53.6]}
8... Be7 {[%clk 0:02:38.9]} 9. Nc3 {[%clk 0:02:53.5]} 9... O-O {[%clk
0:02:38.2]} 10. h3 {[%clk 0:02:51.6]} 10... Ne8 {[%clk 0:02:37.5]} 11. Nd5
{[%clk 0:02:50.7]} 11... g6 {[%clk 0:02:35.8]} 12. Bh6 {[%clk 0:02:48.9]} 12...
Ng7 {[%clk 0:02:33.7]} 13. a3 {[%clk 0:02:48.4]} 13... b6 {[%clk 0:02:31.6]} 14.
b4 {[%clk 0:02:47.5]} 14... f5 {[%clk 0:02:30.8]} 15. Nxe7+ {[%clk 0:02:25.7]}
15... Qxe7 {[%clk 0:02:28.4]} 16. b5 {[%clk 0:02:25.4]} 16... Bb7 {[%clk
0:02:27.2]} 17. a4 {[%clk 0:02:21.5]} 17... Nf6 {[%clk 0:02:18.1]} 18. Bg5
{[%clk 0:02:15.5]} 18... Qf7 {[%clk 0:02:10.9]} 19. Bxf6 {[%clk 0:02:14]} 19...
Qxf6 {[%clk 0:02:09.9]} 20. a5 {[%clk 0:02:14]} 20... Ne6 {[%clk 0:01:59.5]} 21.
Ra3 {[%clk 0:02:02.7]} 21... Nf4 {[%clk 0:01:57.2]} 22. Rfa1 {[%clk 0:01:58.7]}
22... fxe4 {[%clk 0:01:49.6]} 23. dxe4 {[%clk 0:01:57.7]} 23... Rab8 {[%clk
0:01:48.6]} 24. Bf1 {[%clk 0:01:55.7]} 24... g5 {[%clk 0:01:45]} 25. Nh2 {[%clk
0:01:53.7]} 25... h5 {[%clk 0:01:42.1]} 26. f3 {[%clk 0:01:52.9]} 26... Ne6
{[%clk 0:01:39]} 27. Qd3 {[%clk 0:01:41.9]} 27... Nd4 {[%clk 0:01:38.2]} 28. Be2
{[%clk 0:01:40]} 28... Qg6 {[%clk 0:01:34.2]} 29. Bd1 {[%clk 0:01:38.3]} 29...
Rf7 {[%clk 0:01:32.8]} 30. Nf1 {[%clk 0:01:36.5]} 30... Rbf8 {[%clk 0:01:27.5]}
31. Ne3 {[%clk 0:01:32.4]} 31... Bc8 {[%clk 0:01:19.4]} 32. axb6 {[%clk
0:01:31.2]} 32... axb6 {[%clk 0:01:18.8]} 33. Nd5 {[%clk 0:01:28.8]} 33... g4
{[%clk 0:01:17.7]} 34. fxg4 {[%clk 0:01:27.3]} 34... hxg4 {[%clk 0:01:13.1]} 35.
Bxg4 {[%clk 0:01:20.9]} 35... Bxg4 {[%clk 0:01:11.9]} 36. hxg4 {[%clk
0:01:19.3]} 36... Qxg4 {[%clk 0:01:12.8]} 37. Qh3 {[%clk 0:01:11.6]} 37... Qxe4
{[%clk 0:01:08]} 38. Nxb6 {[%clk 0:01:09]} 38... Rh7 {[%clk 0:01:04.3]} 39. Rg3+
{[%clk 0:01:05]} 39... Kh8 {[%clk 0:01:03.2]} 40. Qg4 {[%clk 0:01:03.8]} 40...
Ne2+ {[%clk 0:00:59.1]} 41. Qxe2 {[%clk 0:01:02.5]} 41... Qxe2 {[%clk
0:00:58.6]} 42. Nd5 {[%clk 0:01:01.7]} 42... Qf2# {[%clk 0:00:57.2]} 0-1

[Event "*** Titled Tuesday Blitz"]
[Site "Chess.com"]
[Date "2020.10.20"]
[Round "4"]
[White "ErikRonka"]
[Black "sjam6687"]
[Result "0-1"]
[WhiteElo "2422"]
[BlackElo "2642"]
[TimeControl "180+1"]
[EndTime "10:40:02 PDT"]
[Termination "sjam6687 won by checkmate"]

1. e4 {[%clk 0:03:00.9]} 1... e5 {[%clk 0:02:59.7]} 2. Nf3 {[%clk 0:03:01.1]}
2... Nc6 {[%clk 0:02:58.3]} 3. Bb5 {[%clk 0:03:01.6]} 3... a6 {[%clk 0:02:56.7]}
4. Ba4 {[%clk 0:03:02]} 4... Nf6 {[%clk 0:02:56.4]} 5. O-O {[%clk 0:03:02.5]}
5... Nxe4 {[%clk 0:02:52.5]} 6. d4 {[%clk 0:03:01.1]} 6... b5 {[%clk 0:02:50.3]}
7. Bb3 {[%clk 0:03:01.5]} 7... d5 {[%clk 0:02:49.5]} 8. dxe5 {[%clk 0:03:01.7]}
8... Be6 {[%clk 0:02:49.6]} 9. Qe2 {[%clk 0:03:01.1]} 9... Be7 {[%clk
0:02:47.7]} 10. Rd1 {[%clk 0:03:01.1]} 10... Nc5 {[%clk 0:02:46.1]} 11. Nc3
{[%clk 0:02:57]} 11... Nxb3 {[%clk 0:02:46.1]} 12. cxb3 {[%clk 0:02:57.8]} 12...
O-O {[%clk 0:02:44.8]} 13. Bf4 {[%clk 0:02:55.3]} 13... d4 {[%clk 0:02:39.7]}
14. Qe4 {[%clk 0:02:31.8]} 14... Qe8 {[%clk 0:02:27.3]} 15. Nxd4 {[%clk
0:02:26.2]} 15... Nxd4 {[%clk 0:02:25]} 16. Rxd4 {[%clk 0:02:21.9]} 16... c5
{[%clk 0:02:20.6]} 17. Rd2 {[%clk 0:02:20.3]} 17... Rc8 {[%clk 0:02:20.3]} 18.
Nd5 {[%clk 0:02:04.9]} 18... c4 {[%clk 0:02:15.4]} 19. h3 {[%clk 0:01:43.7]}
19... Bxd5 {[%clk 0:02:09]} 20. Rxd5 {[%clk 0:01:38.7]} 20... cxb3 {[%clk
0:02:07]} 21. axb3 {[%clk 0:01:39.6]} 21... Qc6 {[%clk 0:02:06.2]} 22. Rc1
{[%clk 0:01:21.7]} 22... Qg6 {[%clk 0:01:56.7]} 23. Qxg6 {[%clk 0:01:14.7]}
23... hxg6 {[%clk 0:01:57.5]} 24. Rd7 {[%clk 0:00:43.8]} 24... g5 {[%clk
0:01:48.1]} 25. Be3 {[%clk 0:00:22.8]} 25... Rxc1+ {[%clk 0:01:45.5]} 26. Bxc1
{[%clk 0:00:23.7]} 26... Rc8 {[%clk 0:01:46.1]} 27. Be3 {[%clk 0:00:22.6]} 27...
Bb4 {[%clk 0:01:44.2]} 28. Ra7 {[%clk 0:00:18]} 28... a5 {[%clk 0:01:40.9]} 29.
Bb6 {[%clk 0:00:15.2]} 29... Rc2 {[%clk 0:01:39.3]} 30. Bxa5 {[%clk 0:00:14.6]}
30... Bc5 {[%clk 0:01:37.6]} 31. Ra8+ {[%clk 0:00:14.6]} 31... Kh7 {[%clk
0:01:37]} 32. b4 {[%clk 0:00:14.4]} 32... Bxf2+ {[%clk 0:01:35.1]} 33. Kh2
{[%clk 0:00:13.4]} 33... Rxb2 {[%clk 0:01:33.5]} 34. Rb8 {[%clk 0:00:13.1]}
34... Rb3 {[%clk 0:01:31.9]} 35. Rxb5 {[%clk 0:00:12.5]} 35... Bg3+ {[%clk
0:01:32]} 36. Kg1 {[%clk 0:00:11.2]} 36... Rb1# {[%clk 0:01:32.8]} 0-1

[Event "*** Titled Tuesday Blitz"]
[Site "Chess.com"]
[Date "2020.10.20"]
[Round "4"]
[White "VerdeNotte"]
[Black "Lion-Al-Messi"]
[Result "1-0"]
[WhiteElo "2856"]
[BlackElo "2574"]
[TimeControl "180+1"]
[EndTime "10:40:06 PDT"]
[Termination "VerdeNotte won by resignation"]

1. Nf3 {[%clk 0:03:00.9]} 1... b6 {[%clk 0:03:00.9]} 2. e4 {[%clk 0:02:59.4]}
2... Bb7 {[%clk 0:03:01.8]} 3. Nc3 {[%clk 0:02:59.6]} 3... e6 {[%clk 0:03:02.4]}
4. d4 {[%clk 0:02:55.4]} 4... Bb4 {[%clk 0:03:02.5]} 5. Bd3 {[%clk 0:02:55.7]}
5... Nf6 {[%clk 0:03:02.9]} 6. e5 {[%clk 0:02:55.8]} 6... Ne4 {[%clk 0:03:02.8]}
7. Bd2 {[%clk 0:02:52.1]} 7... Nxd2 {[%clk 0:03:02.6]} 8. Nxd2 {[%clk
0:02:52.1]} 8... Nc6 {[%clk 0:02:55.5]} 9. a3 {[%clk 0:02:50.6]} 9... Be7 {[%clk
0:02:50.2]} 10. Qg4 {[%clk 0:02:47.8]} 10... O-O {[%clk 0:02:43.7]} 11. Nf3
{[%clk 0:02:42]} 11... f5 {[%clk 0:02:43.4]} 12. exf6 {[%clk 0:02:41.5]} 12...
Bxf6 {[%clk 0:02:43.4]} 13. O-O-O {[%clk 0:02:38.8]} 13... Qe7 {[%clk
0:02:38.9]} 14. h4 {[%clk 0:02:29.1]} 14... a6 {[%clk 0:02:38.1]} 15. Ne4 {[%clk
0:02:24.3]} 15... h6 {[%clk 0:02:02.8]} 16. Qg6 {[%clk 0:02:15.6]} 16... Qf7
{[%clk 0:02:00]} 17. Nxf6+ {[%clk 0:02:04.9]} 17... Qxf6 {[%clk 0:02:00.1]} 18.
Qh7+ {[%clk 0:01:59.6]} 18... Kf7 {[%clk 0:02:00.4]} 19. Ne5+ {[%clk 0:01:56.6]}
19... Nxe5 {[%clk 0:01:56.1]} 20. dxe5 {[%clk 0:01:57.5]} 20... Qf4+ {[%clk
0:01:56.3]} 21. Kb1 {[%clk 0:01:57.4]} 21... Rg8 {[%clk 0:01:47.1]} 22. Rhe1
{[%clk 0:01:20.7]} 22... Ke7 {[%clk 0:01:44.5]} 23. Be4 {[%clk 0:01:14.6]} 23...
Bxe4 {[%clk 0:01:41.4]} 24. Rxe4 {[%clk 0:01:13.1]} 24... Qf5 {[%clk 0:01:41.8]}
25. Qxf5 {[%clk 0:01:12.5]} 25... exf5 {[%clk 0:01:42.7]} 26. Red4 {[%clk
0:01:12.9]} 26... Rad8 {[%clk 0:01:42.8]} 27. h5 {[%clk 0:01:12.5]} 27... Ke6
{[%clk 0:01:42.5]} 28. Re1 {[%clk 0:01:10.4]} 28... Rgf8 {[%clk 0:01:41.8]} 29.
g3 {[%clk 0:01:09.7]} 29... c5 {[%clk 0:01:30]} 30. Rd6+ {[%clk 0:01:09.3]}
30... Ke7 {[%clk 0:01:29]} 31. Rxb6 {[%clk 0:01:09.5]} 31... Ra8 {[%clk
0:01:23.5]} 32. Rg6 {[%clk 0:00:59.9]} 32... Rg8 {[%clk 0:01:19]} 33. Rd1 {[%clk
0:00:56.2]} 33... Ra7 {[%clk 0:01:16.6]} 34. Rd5 {[%clk 0:00:54.1]} 34... Rc7
{[%clk 0:01:02.5]} 35. Rxa6 {[%clk 0:00:52.9]} 35... Rf8 {[%clk 0:01:00.4]} 36.
Rg6 {[%clk 0:00:52.2]} 36... Kf7 {[%clk 0:00:55]} 37. Rxd7+ {[%clk 0:00:51.4]}
37... Rxd7 {[%clk 0:00:54.7]} 38. e6+ {[%clk 0:00:52]} 38... Ke7 {[%clk
0:00:54.7]} 39. exd7 {[%clk 0:00:52.9]} 39... Kxd7 {[%clk 0:00:51]} 40. Rxg7+
{[%clk 0:00:53.1]} 40... Kd6 {[%clk 0:00:50.5]} 41. Rg6+ {[%clk 0:00:53.4]} 1-0

[Event "*** Titled Tuesday Blitz"]
[Site "Chess.com"]
[Date "2020.10.20"]
[Round "4"]
[White "LiamVrolijk"]
[Black "Maghalashvili"]
[Result "0-1"]
[WhiteElo "2847"]
[BlackElo "2677"]
[TimeControl "180+1"]
[EndTime "10:40:12 PDT"]
[Termination "Maghalashvili won on time"]

1. c4 {[%clk 0:03:00.9]} 1... e6 {[%clk 0:02:58.8]} 2. Nc3 {[%clk 0:03:00.5]}
2... d5 {[%clk 0:02:59]} 3. d4 {[%clk 0:03:01.1]} 3... Be7 {[%clk 0:02:57.9]} 4.
Nf3 {[%clk 0:03:00.2]} 4... Nf6 {[%clk 0:02:57.9]} 5. Bf4 {[%clk 0:03:00.9]}
5... O-O {[%clk 0:02:58.1]} 6. e3 {[%clk 0:03:01.5]} 6... Nbd7 {[%clk
0:02:58.5]} 7. a3 {[%clk 0:02:58.1]} 7... c5 {[%clk 0:02:57.6]} 8. cxd5 {[%clk
0:02:58.4]} 8... Nxd5 {[%clk 0:02:57]} 9. Nxd5 {[%clk 0:02:58.5]} 9... exd5
{[%clk 0:02:57.9]} 10. dxc5 {[%clk 0:02:58.7]} 10... Nxc5 {[%clk 0:02:58.3]} 11.
Be2 {[%clk 0:02:57.9]} 11... Bf6 {[%clk 0:02:55.9]} 12. Be5 {[%clk 0:02:56.6]}
12... Bg4 {[%clk 0:02:52.8]} 13. Bxf6 {[%clk 0:02:47.1]} 13... Qxf6 {[%clk
0:02:52.1]} 14. Qd4 {[%clk 0:02:41.4]} 14... Qxd4 {[%clk 0:02:37.7]} 15. Nxd4
{[%clk 0:02:42.3]} 15... Bxe2 {[%clk 0:02:38.1]} 16. Kxe2 {[%clk 0:02:42.3]}
16... g6 {[%clk 0:02:35.9]} 17. Rac1 {[%clk 0:02:40.3]} 17... Rac8 {[%clk
0:02:35.8]} 18. Rhd1 {[%clk 0:02:35.7]} 18... a6 {[%clk 0:02:32.2]} 19. Rc3
{[%clk 0:02:22.5]} 19... Na4 {[%clk 0:02:22.7]} 20. Rb3 {[%clk 0:01:58]} 20...
b5 {[%clk 0:02:16.4]} 21. f3 {[%clk 0:01:55.4]} 21... Kg7 {[%clk 0:02:12.4]} 22.
Kd2 {[%clk 0:01:51.6]} 22... Rc4 {[%clk 0:02:08.3]} 23. Rb1 {[%clk 0:01:38.1]}
23... Rfc8 {[%clk 0:02:04.7]} 24. Rb4 {[%clk 0:01:30.5]} 24... R4c7 {[%clk
0:01:55.6]} 25. Rb3 {[%clk 0:01:24.2]} 25... h5 {[%clk 0:01:51]} 26. h4 {[%clk
0:01:20.5]} 26... Kf6 {[%clk 0:01:50.4]} 27. Rd3 {[%clk 0:01:19.4]} 27... Ke5
{[%clk 0:01:35.8]} 28. b3 {[%clk 0:01:14.9]} 28... Nc5 {[%clk 0:01:28.9]} 29.
Rc3 {[%clk 0:00:20.1]} 29... Ne4+ {[%clk 0:01:28.4]} 30. fxe4 {[%clk 0:00:21]}
30... Rxc3 {[%clk 0:01:28.8]} 31. exd5 {[%clk 0:00:21.7]} 31... Kxd5 {[%clk
0:01:24.3]} 32. Rf1 {[%clk 0:00:20.7]} 32... f5 {[%clk 0:01:23.3]} 33. Rd1
{[%clk 0:00:21.2]} 33... Ke4 {[%clk 0:01:21.3]} 34. Re1 {[%clk 0:00:17]} 34...
Rd3+ {[%clk 0:01:21.4]} 0-1

[Event "*** Titled Tuesday Blitz"]
[Site "Chess.com"]
[Date "2020.10.20"]
[Round "4"]
[White "platy3"]
[Black "RestartingChess"]
[Result "1-0"]
[WhiteElo "2816"]
[BlackElo "2522"]
[TimeControl "180+1"]
[EndTime "10:40:12 PDT"]
[Termination "platy3 won by checkmate"]

1. d4 {[%clk 0:03:00.9]} 1... Nf6 {[%clk 0:03:00.4]} 2. c4 {[%clk 0:02:55.8]}
2... b6 {[%clk 0:03:00.9]} 3. Nf3 {[%clk 0:02:54.5]} 3... Bb7 {[%clk 0:03:01.4]}
4. g3 {[%clk 0:02:54.4]} 4... Bxf3 {[%clk 0:02:59.6]} 5. exf3 {[%clk 0:02:54.2]}
5... d5 {[%clk 0:03:00.2]} 6. Bg2 {[%clk 0:02:51.1]} 6... e6 {[%clk 0:03:00.6]}
7. O-O {[%clk 0:02:50.8]} 7... Be7 {[%clk 0:03:00.3]} 8. Nc3 {[%clk 0:02:49.3]}
8... O-O {[%clk 0:03:00.4]} 9. cxd5 {[%clk 0:02:49.3]} 9... Nxd5 {[%clk
0:03:00.5]} 10. f4 {[%clk 0:02:49.7]} 10... c6 {[%clk 0:02:59.6]} 11. Qa4 {[%clk
0:02:48.5]} 11... Bf6 {[%clk 0:02:57.5]} 12. Be3 {[%clk 0:02:43.4]} 12... b5
{[%clk 0:02:56.9]} 13. Qc2 {[%clk 0:02:40.9]} 13... Nd7 {[%clk 0:02:56.6]} 14.
a4 {[%clk 0:02:36.9]} 14... a6 {[%clk 0:02:55.4]} 15. Ne4 {[%clk 0:02:36.3]}
15... N7b6 {[%clk 0:02:34.9]} 16. axb5 {[%clk 0:02:27]} 16... cxb5 {[%clk
0:02:30]} 17. b3 {[%clk 0:02:20.1]} 17... Rc8 {[%clk 0:02:23.8]} 18. Qd2 {[%clk
0:02:13.9]} 18... Ra8 {[%clk 0:02:11.5]} 19. Nc5 {[%clk 0:02:06.4]} 19... Qc8
{[%clk 0:01:57.6]} 20. Rfc1 {[%clk 0:02:03.1]} 20... Qd8 {[%clk 0:01:32.4]} 21.
Rxa6 {[%clk 0:01:55.8]} 21... Rxa6 {[%clk 0:01:32.5]} 22. Nxa6 {[%clk
0:01:56.7]} 22... Qa8 {[%clk 0:01:22.2]} 23. Nc7 {[%clk 0:01:52]} 23... Qa3
{[%clk 0:01:20.5]} 24. Nxd5 {[%clk 0:01:49.2]} 24... Nxd5 {[%clk 0:01:20]} 25.
Bxd5 {[%clk 0:01:49.3]} 25... exd5 {[%clk 0:01:20.9]} 26. Qd3 {[%clk 0:01:49.4]}
26... b4 {[%clk 0:01:14.1]} 27. Rc6 {[%clk 0:01:37]} 27... h6 {[%clk 0:01:07.4]}
28. g4 {[%clk 0:01:27]} 28... Re8 {[%clk 0:00:31.2]} 29. g5 {[%clk 0:01:07.1]}
29... hxg5 {[%clk 0:00:29.6]} 30. fxg5 {[%clk 0:01:07.1]} 30... Be7 {[%clk
0:00:29]} 31. g6 {[%clk 0:01:03.8]} 31... f6 {[%clk 0:00:19.3]} 32. Qf5 {[%clk
0:01:01.4]} 32... Qxb3 {[%clk 0:00:17.3]} 33. Qe6+ {[%clk 0:01:01.5]} 33... Kh8
{[%clk 0:00:15.7]} 34. Qh3+ {[%clk 0:01:01.6]} 34... Kg8 {[%clk 0:00:14.2]} 35.
Qh7+ {[%clk 0:01:02.5]} 35... Kf8 {[%clk 0:00:15.1]} 36. Qh8# {[%clk 0:01:03.3]}
1-0

[Event "*** Titled Tuesday Blitz"]
[Site "Chess.com"]
[Date "2020.10.20"]
[Round "4"]
[White "CM_rui"]
[Black "shriyanasmallya"]
[Result "1-0"]
[WhiteElo "2369"]
[BlackElo "1660"]
[TimeControl "180+1"]
[EndTime "10:40:18 PDT"]
[Termination "CM_rui won by resignation"]

1. e4 {[%clk 0:03:00.9]} 1... e5 {[%clk 0:02:58.3]} 2. Nc3 {[%clk 0:03:00.3]}
2... Nf6 {[%clk 0:02:57.4]} 3. f4 {[%clk 0:02:59.3]} 3... exf4 {[%clk
0:02:56.4]} 4. e5 {[%clk 0:02:59.3]} 4... Ng8 {[%clk 0:02:55.2]} 5. Nf3 {[%clk
0:02:58.7]} 5... Nc6 {[%clk 0:02:54.9]} 6. d4 {[%clk 0:02:58.8]} 6... d5 {[%clk
0:02:52.7]} 7. Bxf4 {[%clk 0:02:56.9]} 7... Bg4 {[%clk 0:02:50.4]} 8. Be2 {[%clk
0:02:50.9]} 8... Bxf3 {[%clk 0:02:45.5]} 9. Bxf3 {[%clk 0:02:50.3]} 9... Bb4
{[%clk 0:02:44.1]} 10. O-O {[%clk 0:02:48.7]} 10... Bxc3 {[%clk 0:02:44]} 11.
bxc3 {[%clk 0:02:49.6]} 11... Qd7 {[%clk 0:02:43.5]} 12. a4 {[%clk 0:02:43.9]}
12... Nge7 {[%clk 0:02:42.3]} 13. Rb1 {[%clk 0:02:38.8]} 13... b6 {[%clk
0:02:40.2]} 14. Qd3 {[%clk 0:02:36.9]} 14... Ng6 {[%clk 0:02:37.1]} 15. Bg3
{[%clk 0:02:32.1]} 15... O-O {[%clk 0:02:34.5]} 16. h4 {[%clk 0:02:23.7]} 16...
Nge7 {[%clk 0:02:27.5]} 17. h5 {[%clk 0:02:13.2]} 17... h6 {[%clk 0:02:24.1]}
18. Kh2 {[%clk 0:02:05.6]} 18... f5 {[%clk 0:02:12.2]} 19. Rbe1 {[%clk
0:01:46.3]} 19... Qe6 {[%clk 0:02:08]} 20. Qd2 {[%clk 0:01:38.3]} 20... Qf7
{[%clk 0:02:03.8]} 21. c4 {[%clk 0:01:35.2]} 21... dxc4 {[%clk 0:02:00.8]} 22.
d5 {[%clk 0:01:30.4]} 22... Rad8 {[%clk 0:01:54.1]} 23. Qf2 {[%clk 0:01:19.2]}
23... Na5 {[%clk 0:01:40]} 24. e6 {[%clk 0:01:10.4]} 24... Qf6 {[%clk
0:01:35.7]} 25. Bxc7 {[%clk 0:01:06.4]} 25... Rc8 {[%clk 0:01:34.6]} 26. Be5
{[%clk 0:01:06.4]} 26... Qg5 {[%clk 0:01:32.6]} 27. d6 {[%clk 0:01:06]} 27...
Nec6 {[%clk 0:01:30]} 28. e7 {[%clk 0:00:57]} 28... Rf7 {[%clk 0:01:15.3]} 29.
Bd5 {[%clk 0:00:46.5]} 29... Nxe5 {[%clk 0:01:13.8]} 30. Rxe5 {[%clk 0:00:39.2]}
30... Qxh5+ {[%clk 0:01:08.8]} 31. Kg1 {[%clk 0:00:39.2]} 31... Nc6 {[%clk
0:00:52]} 32. Bxc6 {[%clk 0:00:33.1]} 1-0

[Event "*** Titled Tuesday Blitz"]
[Site "Chess.com"]
[Date "2020.10.20"]
[Round "4"]
[White "BigAl"]
[Black "cassoulet"]
[Result "0-1"]
[WhiteElo "2463"]
[BlackElo "2696"]
[TimeControl "180+1"]
[EndTime "10:40:25 PDT"]
[Termination "cassoulet won by resignation"]

1. e4 {[%clk 0:03:00.9]} 1... c5 {[%clk 0:02:59]} 2. Nc3 {[%clk 0:03:00.4]} 2...
e6 {[%clk 0:02:59.5]} 3. g3 {[%clk 0:03:01]} 3... Nc6 {[%clk 0:02:59.1]} 4. Bg2
{[%clk 0:03:01.4]} 4... Nge7 {[%clk 0:02:59.1]} 5. Nf3 {[%clk 0:02:59.4]} 5...
g6 {[%clk 0:02:59.1]} 6. d4 {[%clk 0:02:53.3]} 6... cxd4 {[%clk 0:02:56.7]} 7.
Nxd4 {[%clk 0:02:53.7]} 7... Bg7 {[%clk 0:02:56.8]} 8. Ndb5 {[%clk 0:02:43.5]}
8... d5 {[%clk 0:02:54.6]} 9. exd5 {[%clk 0:02:41.5]} 9... exd5 {[%clk
0:02:54.7]} 10. Nxd5 {[%clk 0:02:37.1]} 10... Nxd5 {[%clk 0:02:54.5]} 11. Qxd5
{[%clk 0:02:31.4]} 11... Qe7+ {[%clk 0:02:35.5]} 12. Be3 {[%clk 0:02:30.4]}
12... O-O {[%clk 0:02:35.7]} 13. O-O {[%clk 0:02:14.7]} 13... Be6 {[%clk
0:02:35.4]} 14. Qc5 {[%clk 0:02:13]} 14... Qxc5 {[%clk 0:02:25.9]} 15. Bxc5
{[%clk 0:02:12.7]} 15... Rfc8 {[%clk 0:02:23.6]} 16. c3 {[%clk 0:02:04]} 16...
Bc4 {[%clk 0:02:16.9]} 17. Nd6 {[%clk 0:02:00.9]} 17... Bxf1 {[%clk 0:02:16.8]}
18. Kxf1 {[%clk 0:01:51.7]} 18... Rc7 {[%clk 0:02:06.1]} 19. Nxb7 {[%clk
0:01:50.3]} 19... Rb8 {[%clk 0:02:00.7]} 20. Re1 {[%clk 0:01:23.9]} 20... Rcxb7
{[%clk 0:01:46.2]} 21. Bxc6 {[%clk 0:01:22.7]} 21... Rxb2 {[%clk 0:01:46.6]} 22.
Bxa7 {[%clk 0:01:17.2]} 22... Rc8 {[%clk 0:01:46.2]} 23. Bd5 {[%clk 0:01:14.7]}
23... Bxc3 {[%clk 0:01:19]} 24. Re7 {[%clk 0:01:14.2]} 24... Rf8 {[%clk
0:01:19]} 25. Bb3 {[%clk 0:01:01.2]} 25... Rd2 {[%clk 0:01:11]} 26. Rc7 {[%clk
0:00:57.2]} 26... Bd4 {[%clk 0:01:09.6]} 27. Rd7 {[%clk 0:00:51.5]} 27... Rxf2+
{[%clk 0:01:07.8]} 28. Ke1 {[%clk 0:00:51.3]} 28... Re8+ {[%clk 0:01:00.7]} 29.
Kd1 {[%clk 0:00:49]} 29... Bxa7 {[%clk 0:00:59]} 30. Rxa7 {[%clk 0:00:49.4]}
30... Kg7 {[%clk 0:00:55.2]} 31. h4 {[%clk 0:00:48.6]} 31... Re3 {[%clk
0:00:54.6]} 32. g4 {[%clk 0:00:45.2]} 32... h5 {[%clk 0:00:48.4]} 33. gxh5
{[%clk 0:00:42.3]} 33... gxh5 {[%clk 0:00:49.3]} 34. Ra5 {[%clk 0:00:42.6]}
34... Rh3 {[%clk 0:00:46.8]} 35. Rg5+ {[%clk 0:00:37.9]} 35... Kf6 {[%clk
0:00:45.6]} 36. Rg1 {[%clk 0:00:38.8]} 36... Rxh4 {[%clk 0:00:44.3]} 37. Kc1
{[%clk 0:00:39]} 37... Rhf4 {[%clk 0:00:43.4]} 38. Rd1 {[%clk 0:00:32.7]} 38...
Rf1 {[%clk 0:00:42.6]} 0-1